fUSD/lending_fUSD_20251112
["ID","MTS","AMOUNT","RATE_DAILY","PERIOD"]
[393747522,1762962632478,-381.47126,0.00035888,30]
[393747523,1762962632488,-300.0,0.00036,120]
[393747524,1762962632497,-381.47126,0.00036088,30]
[393747525,1762962632507,-381.47126,0.00036288,30]
[393747526,1762962632517,-482.808,0.00036288,44]
[393747527,1762962632527,-381.47126,0.00036488,30]
[393747530,1762962632539,-381.47126,0.00036688,30]
[393747531,1762962632548,-478.56668374,0.00036815,2]
[393747533,1762962632559,-381.47126,0.00036888,30]
[393747535,1762962632568,-182.52,0.00037082,120]
[393747537,1762962632578,-381.47126,0.00037088,30]
[393747539,1762962632587,-841.0,0.00037177,3]
[393747541,1762962632596,-167.43,0.00037203,2]
[393747544,1762962632605,-381.47126,0.00037288,30]
[393747546,1762962632615,-381.47126,0.00037488,30]
[393747548,1762962632624,-173.14,0.00037633,2]
[393747550,1762962632634,-381.47126,0.00037688,30]
[393747552,1762962632643,-156.04,0.00037697,60]
[393747554,1762962632655,-200.0,0.00037786,2]
[393747556,1762962632664,-156.04,0.00037797,60]
[393747558,1762962632673,-152.0,0.00037849,3]
[393747560,1762962632683,-381.47126,0.00037888,30]
[393747562,1762962632692,-156.04,0.00037897,60]
[393747564,1762962632701,-168.0,0.00037899,2]
[393747566,1762962632710,-156.06,0.00037997,60]
[393747568,1762962632719,-300.0,0.00038,120]
[393747570,1762962632729,-381.47126,0.00038088,30]
[393747572,1762962632739,-381.47126,0.00038288,30]
[393747573,1762962632749,-381.47126,0.00038488,30]
[393747574,1762962632759,-381.47126,0.00038688,30]
[393747575,1762962632768,-168.0,0.00038848,2]
[393747576,1762962632778,-1000.0,0.00038878,120]
[393747577,1762962632789,-473.8996181,0.00038978,2]
[393747578,1762962632799,-559.9913347,0.00038999,20]
[393747579,1762962632810,-226.98911699,0.00038999,20]
[393747580,1762962632820,-500.0,0.00038999,20]
[393747582,1762962632829,-113562.153,0.00039078,2]
[393747584,1762962632839,-912.98524399,0.00039078,2]
[393747586,1762962632849,-381.47126,0.00039088,30]
[393747588,1762962632858,-203.34167533,0.00039122,2]
[393747590,1762962632868,-473.8996181,0.00039131,2]
[393747592,1762962632877,-1000.0,0.00039178,2]
[393747594,1762962632887,-258.28,0.00039178,30]
[393747596,1762962632896,-2500.0,0.00039187,2]
[393747598,1762962632906,-473.8996181,0.00039284,2]
[393747600,1762962632916,-574.0,0.00039287,2]
[393747602,1762962632926,-6482.0,0.00039287,2]
[393747603,1762962632936,-381.47126,0.00039288,30]
[393747605,1762962632946,-162.66335237,0.00039405,20]
[393747606,1762962632956,-500.0,0.00039432,20]
[393747607,1762962632965,-3323.31,0.00039433,2]
[393747608,1762962632975,-473.8996181,0.00039437,2]
[393747609,1762962632984,-258.28,0.00039452,30]
[393747610,1762962632995,-381.47126,0.00039488,30]
[393747611,1762962633005,-473.8996181,0.0003959,2]
[393747612,1762962633015,-500.0,0.00039668,30]
[393747613,1762962633026,-381.47126,0.00039688,30]
[393747614,1762962633037,-298.22613308,0.00039706,30]
[393747615,1762962633047,-258.29,0.00039726,30]
[393747616,1762962633060,-473.8996181,0.00039744,2]
[393747617,1762962633070,-381.47126,0.00039888,30]
[393747618,1762962633080,-473.8996181,0.00039897,15]
[393747619,1762962633091,-151.16713156,0.00039973,5]
[393747620,1762962633102,-509.26189739,0.00039999,20]
[393747621,1762962633112,-500.0,0.00039999,20]
[393747622,1762962633123,-500.0,0.00039999,20]
[393747623,1762962633134,-500.0,0.00039999,7]
[393747624,1762962633144,-199.0,0.00039999,7]
[393747625,1762962633155,-245.03,0.0004,30]
[393747626,1762962633169,-5000.0,0.0004,2]
[393747627,1762962633180,-5000.0,0.0004,2]
[393747628,1762962633190,-5000.0,0.0004,2]
[393747629,1762962633200,-300.0,0.0004,120]
[393747630,1762962633211,-5000.0,0.0004,2]
[393747631,1762962633221,-5000.0,0.0004,2]
[393747632,1762962633231,-518.57722,0.0004,2]
[393747633,1762962633243,-446.3785,0.0004003,2]
[393747634,1762962633252,-473.8996181,0.0004005,15]
[393747635,1762962633262,-381.47126,0.00040088,30]
[393747636,1762962633273,-1010.01897957,0.00040173,120]
[393747637,1762962633286,-958.01119287,0.00040173,120]
[393747638,1762962633299,-782.57033734,0.00040173,120]
[393747639,1762962633321,-300.55104026,0.00040173,120]
[393747640,1762962633334,-1948.84844996,0.00040173,120]
[393747641,1762962633344,-156.53410877,0.00040173,15]
[393747642,1762962633354,-1356.4174412,0.00040173,15]
[393747643,1762962633367,-3106.81981586,0.00040173,15]
[393747650,1762962638004,-10607.0172018,0.00040173,15]
[393747651,1762962638015,-500.0,0.00040183,30]
[393747652,1762962638025,-4327.15,0.00040183,2]
[393747653,1762962638035,-7599.4573403,0.00040193,15]
[393747654,1762962638047,-7470.79711852,0.00040193,15]
[393747655,1762962638057,-473.8996181,0.00040203,15]
[393747656,1762962638067,-13105.16895332,0.00040214,15]
[393747657,1762962638079,-259.06457817,0.00040214,15]
[393747658,1762962638536,-650.00000039,0.00040214,15]
[393747659,1762962638549,-1056.02092694,0.00040214,15]
[393747660,1762962638559,-446.3785,0.0004023,3]
[393747661,1762962638569,-15070.25445882,0.00040234,15]
[393747662,1762962638579,-1479.28198184,0.00040244,4]
[393747663,1762962638589,-572.21,0.00040244,2]
[393747664,1762962638599,-15070.25445882,0.00040254,15]
[393747665,1762962638614,-36982.049546,0.00040263,4]
[393747666,1762962638624,-572.21,0.00040263,2]
[393747667,1762962638634,-572.21,0.00040263,2]
[393747668,1762962638643,-572.21,0.00040263,2]
[393747669,1762962638653,-4327.15,0.00040263,2]
[393747670,1762962638663,-163.51,0.00040263,2]
[393747671,1762962638672,-505.86830759,0.00040272,20]
[393747672,1762962638682,-500.0,0.00040272,20]
[393747673,1762962638693,-500.0,0.00040272,7]
[393747674,1762962638702,-501.72670802,0.00040273,5]
[393747675,1762962638712,-500.0,0.00040273,20]
[393747676,1762962638722,-500.0,0.00040273,20]
[393747677,1762962638733,-303.41876755,0.00040273,20]
[393747679,1762962638743,-297.22511826,0.00040273,20]
[393747681,1762962638753,-500.0,0.00040273,20]
[393747683,1762962638763,-500.0,0.00040273,20]
[393747684,1762962638773,-500.0,0.00040273,20]
[393747686,1762962638783,-500.0,0.00040273,20]
[393747688,1762962638793,-595.02417111,0.00040273,20]
[393747690,1762962638806,-500.0,0.00040273,20]
[393747692,1762962638819,-500.0,0.00040273,20]
[393747693,1762962638829,-627.92253748,0.00040273,20]
[393747695,1762962638839,-487.62945193,0.00040273,20]
[393747697,1762962638848,-500.0,0.00040273,20]
[393747699,1762962638857,-249.46966786,0.00040273,20]
[393747701,1762962638867,-607.19056721,0.00040273,20]
[393747702,1762962638876,-347.41095185,0.00040273,20]
[393747704,1762962638886,-311.50056147,0.00040273,20]
[393747706,1762962638895,-500.0,0.00040273,20]
[393747708,1762962638905,-500.0,0.00040273,20]
[393747710,1762962638915,-590.74195738,0.00040273,20]
[393747711,1762962638925,-414.6146286,0.00040273,20]
[393747713,1762962638935,-500.0,0.00040273,20]
[393747715,1762962638945,-500.0,0.00040273,20]
[393747717,1762962638955,-500.0,0.00040273,20]
[393747719,1762962638965,-614.63068439,0.00040273,20]
[393747720,1762962638975,-500.0,0.00040273,20]
[393747722,1762962638986,-296.64367984,0.00040273,20]
[393747724,1762962638999,-500.0,0.00040273,20]
[393747726,1762962639010,-500.0,0.00040273,20]
[393747728,1762962639019,-451.73169772,0.00040273,20]
[393747730,1762962639030,-500.0,0.00040273,20]
[393747732,1762962639040,-500.0,0.00040273,120]
[393747733,1762962639050,-500.0,0.00040273,20]
[393747735,1762962639065,-500.0,0.00040273,20]
[393747737,1762962639075,-500.0,0.00040273,20]
[393747739,1762962639086,-512.46718402,0.00040273,20]
[393747741,1762962639095,-523.5195773,0.00040273,20]
[393747743,1762962639106,-500.0,0.00040273,20]
[393747745,1762962639117,-452.34027239,0.00040273,20]
[393747747,1762962639127,-268.23783738,0.00040273,20]
[393747749,1762962639138,-500.0,0.00040273,20]
[393747750,1762962639148,-464.68167995,0.00040273,20]
[393747751,1762962639158,-568.37918798,0.00040273,20]
[393747752,1762962639172,-500.0,0.00040273,20]
[393747753,1762962639182,-307.46797566,0.00040273,20]
[393747754,1762962639191,-500.0,0.00040273,20]
[393747755,1762962639202,-500.0,0.00040273,20]
[393747756,1762962639212,-500.0,0.00040273,20]
[393747757,1762962639222,-373.30798458,0.00040273,20]
[393747758,1762962639232,-500.0,0.00040273,20]
[393747759,1762962639243,-500.0,0.00040273,20]
[393747760,1762962639255,-500.0,0.00040273,20]
[393747761,1762962639264,-396.06211683,0.00040273,20]
[393747762,1762962639274,-422.01624957,0.00040273,20]
[393747764,1762962639284,-537.54158613,0.00040273,20]
[393747765,1762962639294,-513.87827695,0.00040273,20]
[393747767,1762962639304,-543.97362261,0.00040273,20]
[393747769,1762962639316,-208.67835101,0.00040273,20]
[393747771,1762962639326,-153.5585818,0.00040273,20]
[393747773,1762962639337,-538.90505053,0.00040273,20]
[393747775,1762962639347,-500.0,0.00040273,7]
[393747777,1762962639357,-500.0,0.00040273,20]
[393747779,1762962639367,-266.66092551,0.00040273,20]
[393747781,1762962639377,-500.0,0.00040273,20]
[393747783,1762962639388,-500.0,0.00040273,20]
[393747786,1762962639398,-243.11842268,0.00040273,20]
[393747788,1762962639417,-500.0,0.00040273,20]
[393747790,1762962639427,-500.0,0.00040273,20]
[393747793,1762962639438,-500.0,0.00040273,20]
[393747795,1762962639448,-500.0,0.00040273,20]
[393747796,1762962639457,-476.11120023,0.00040273,20]
[393747799,1762962639467,-500.0,0.00040273,20]
[393747801,1762962639477,-500.0,0.00040273,20]
[393747803,1762962639487,-500.0,0.00040273,20]
[393747805,1762962639496,-500.0,0.00040273,20]
[393747807,1762962639506,-490.57257766,0.00040273,20]
[393747809,1762962639516,-500.0,0.00040273,20]
[393747811,1762962639525,-500.0,0.00040273,20]
[393747836,1762962639770,-500.0,0.00040273,20]
[393747838,1762962639779,-500.0,0.00040273,20]
[393747840,1762962639789,-500.0,0.00040273,20]
[393747842,1762962639800,-500.0,0.00040273,20]
[393747844,1762962639810,-431.73463081,0.00040273,20]
[393747846,1762962639819,-383.78323472,0.00040273,20]
[393747848,1762962639828,-340.22763352,0.00040273,20]
[393747851,1762962639839,-191.34697931,0.00040273,20]
[393747853,1762962639849,-500.0,0.00040273,20]
[393747855,1762962639859,-500.0,0.00040273,20]
[393747857,1762962639868,-500.0,0.00040273,20]
[393747859,1762962639878,-178.09329404,0.00040273,20]
[393747861,1762962639888,-500.0,0.00040273,20]
[393747863,1762962639897,-500.0,0.00040273,20]
[393747865,1762962639907,-500.0,0.00040273,20]
[393747867,1762962639916,-375.76994771,0.00040273,20]
[393747869,1762962639926,-500.0,0.00040273,20]
[393747871,1762962639935,-500.0,0.00040273,20]
[393747873,1762962639945,-500.0,0.00040273,20]
[393747875,1762962639955,-500.0,0.00040273,20]
[393747877,1762962639965,-500.0,0.00040273,20]
[393747879,1762962639974,-630.87859523,0.00040273,20]
[393747884,1762962639984,-462.33214186,0.00040273,20]
[393747888,1762962639994,-408.02163594,0.00040273,20]
[393747892,1762962640004,-558.25505738,0.00040273,20]
[393747895,1762962640013,-500.0,0.00040273,20]
[393747898,1762962640022,-500.0,0.00040273,20]
[393747901,1762962640032,-500.0,0.00040273,20]
[393747904,1762962640043,-500.0,0.00040273,20]
[393747906,1762962640052,-500.0,0.00040273,20]
[393747909,1762962640063,-239.12426438,0.00040273,20]
[393747910,1762962640072,-500.0,0.00040273,20]
[393747912,1762962640082,-500.0,0.00040273,20]
[393747913,1762962640091,-500.0,0.00040273,20]
[393747914,1762962640100,-500.0,0.00040273,20]
[393747915,1762962640110,-568.18331011,0.00040273,20]
[393747916,1762962640119,-500.0,0.00040273,20]
[393747917,1762962640130,-633.44725734,0.00040273,20]
[393747918,1762962640139,-500.0,0.00040273,20]
[393747919,1762962640149,-500.0,0.00040273,20]
[393747920,1762962640159,-500.0,0.00040273,20]
[393747921,1762962640174,-500.0,0.00040273,20]
[393747922,1762962640184,-212.22256467,0.00040273,20]
[393747923,1762962640194,-500.0,0.00040273,20]
[393747924,1762962640205,-500.0,0.00040273,20]
[393747925,1762962640215,-500.0,0.00040273,20]
[393747926,1762962640225,-500.0,0.00040273,20]
[393747927,1762962640235,-611.43129878,0.00040273,20]
[393747928,1762962640247,-500.0,0.00040273,20]
[393747929,1762962640257,-500.0,0.00040273,20]
[393747930,1762962640267,-500.0,0.00040273,2]
[393747931,1762962640277,-477.01705635,0.00040273,20]
[393747932,1762962640287,-500.0,0.00040273,20]
[393747933,1762962640297,-500.0,0.00040273,20]
[393747934,1762962640309,-500.0,0.00040273,20]
[393747935,1762962640318,-500.0,0.00040273,20]
[393747936,1762962640327,-534.80852296,0.00040273,20]
[393747937,1762962640337,-500.0,0.00040273,20]
[393747938,1762962640347,-428.98876825,0.00040273,20]
[393747939,1762962640358,-500.0,0.00040273,20]
[393747940,1762962640367,-500.0,0.00040273,10]
[393747941,1762962640377,-537.75445747,0.00040273,20]
[393747942,1762962640387,-500.0,0.00040273,20]
[393747943,1762962640396,-500.0,0.00040273,20]
[393747944,1762962640406,-500.0,0.00040273,20]
[393747945,1762962640416,-500.0,0.00040273,20]
[393747946,1762962640426,-500.0,0.00040273,20]
[393747947,1762962640435,-500.0,0.00040273,20]
[393747948,1762962640445,-500.0,0.00040273,20]
[393747949,1762962640455,-500.0,0.00040273,20]
[393747950,1762962640465,-486.74954768,0.00040273,20]
[393747951,1762962640475,-520.62439407,0.00040273,20]
[393747952,1762962640484,-430.5953965,0.00040273,20]
[393747953,1762962640494,-500.0,0.00040273,20]
[393747954,1762962640504,-500.0,0.00040273,20]
[393747955,1762962640515,-276.93770141,0.00040273,20]
[393747956,1762962640526,-500.0,0.00040273,20]
[393747957,1762962640536,-500.0,0.00040273,15]
[393747958,1762962640545,-500.0,0.00040273,20]
[393747959,1762962640555,-617.44257598,0.00040273,20]
[393747960,1762962640565,-500.0,0.00040273,20]
[393747961,1762962640575,-500.0,0.00040273,20]
[393747962,1762962640585,-315.73930794,0.00040273,20]
[393747963,1762962640594,-560.76842197,0.00040273,20]
[393747964,1762962640604,-500.0,0.00040273,20]
[393747966,1762962640614,-276.54807613,0.00040273,20]
[393747967,1762962640623,-500.0,0.00040273,20]
[393747968,1762962640633,-500.0,0.00040273,20]
[393747969,1762962640643,-500.0,0.00040273,20]
[393747970,1762962640652,-500.0,0.00040273,20]
[393747971,1762962640662,-500.0,0.00040273,20]
[393747972,1762962640673,-549.5461605,0.00040273,20]
[393747973,1762962640682,-307.37661852,0.00040273,20]
[393747974,1762962640692,-500.0,0.00040273,20]
[393747975,1762962640702,-195.47214038,0.00040273,20]
[393747976,1762962640722,-449.08011143,0.00040273,20]
[393747977,1762962640731,-500.0,0.00040273,20]
[393747978,1762962640741,-526.58230548,0.00040273,20]
[393747979,1762962640751,-1069.88,0.00040273,20]
[393747980,1762962640760,-500.0,0.00040273,20]
[393747981,1762962640769,-362.11408124,0.00040273,20]
[393747982,1762962640779,-500.0,0.00040273,20]
[393747983,1762962640788,-595.3752273,0.00040273,20]
[393747984,1762962640802,-500.0,0.00040273,20]
[393747985,1762962640812,-500.0,0.00040273,20]
[393747986,1762962640822,-531.52717222,0.00040273,20]
[393747987,1762962640831,-500.0,0.00040273,20]
[393747988,1762962640841,-199.85645288,0.00040273,2]
[393747989,1762962640851,-345.00565351,0.00040273,20]
[393747990,1762962640863,-265.76909609,0.00040273,20]
[393747991,1762962640873,-500.0,0.00040273,20]
[393747992,1762962640883,-516.89105436,0.00040273,20]
[393747993,1762962640892,-328.85820955,0.00040273,20]
[393747994,1762962640904,-171.14179045,0.00040273,20]
[393747995,1762962640915,-424.94356623,0.00040273,20]
[393747996,1762962640924,-300.0,0.00040273,20]
[393747997,1762962640934,-500.0,0.00040273,20]
[393747998,1762962640944,-500.0,0.00040273,20]
[393747999,1762962640953,-600.0,0.00040273,20]
[393748000,1762962640963,-451.72208335,0.00040273,20]
[393748001,1762962640975,-48.27791665,0.00040273,20]
[393748002,1762962640985,-500.0,0.00040273,20]
[393748003,1762962640995,-500.88907641,0.00040273,20]
[393748004,1762962641006,-92.86872404,0.00040273,20]
[393748005,1762962641016,-474.60042994,0.00040273,20]
[393748006,1762962641025,-500.0,0.00040273,20]
[393748007,1762962641034,-460.0,0.00040273,20]
[393748008,1762962641044,-289.85514899,0.00040273,20]
[393748009,1762962641054,-500.0,0.00040273,20]
[393748010,1762962641064,-500.0,0.00040273,20]
[393748011,1762962641074,-596.4117739,0.00040273,20]
[393748012,1762962641083,-398.04883237,0.00040273,20]
[393748013,1762962641095,-101.95116763,0.00040273,20]
[393748014,1762962641105,-373.80406957,0.00040273,20]
[393748015,1762962641115,-496.94360921,0.00040273,20]
[393748016,1762962641124,-500.0,0.00040273,20]
[393748017,1762962641134,-586.45488064,0.00040273,20]
[393748018,1762962641144,-20.84627295,0.00040273,20]
[393748019,1762962641156,-479.15372705,0.00040273,20]
[393748020,1762962641170,-203.5190816,0.00040273,20]
[393748021,1762962641180,-500.0,0.00040273,20]
[393748022,1762962641189,-574.52215392,0.00040273,20]
[393748023,1762962641201,-500.0,0.00040273,20]
[393748024,1762962641213,-530.95765958,0.00040273,20]
[393748025,1762962641222,-169.53798117,0.00040273,20]
[393748026,1762962641232,-500.0,0.00040273,20]
[393748027,1762962641241,-172.62900837,0.00040273,20]
[393748028,1762962641252,-500.0,0.00040273,20]
[393748029,1762962641262,-500.0,0.00040273,20]
[393748030,1762962641271,-500.0,0.00040273,20]
[393748031,1762962641281,-500.0,0.00040273,20]
[393748032,1762962641290,-500.0,0.00040273,20]
[393748033,1762962641299,-308.43517065,0.00040273,20]
[393748034,1762962641309,-500.0,0.00040273,20]
[393748035,1762962641318,-500.0,0.00040273,20]
[393748036,1762962641327,-500.0,0.00040273,20]
[393748037,1762962641336,-500.0,0.00040273,20]
[393748038,1762962641346,-172.68845389,0.00040273,20]
[393748039,1762962641355,-500.0,0.00040273,20]
[393748040,1762962641365,-500.0,0.00040273,20]
[393748041,1762962641374,-456.43871456,0.00040273,20]
[393748042,1762962641384,-500.0,0.00040273,20]
[393748043,1762962641394,-500.0,0.00040273,20]
[393748044,1762962641403,-229.65081027,0.00040273,20]
[393748045,1762962641412,-442.90644804,0.00040273,20]
[393748046,1762962641422,-500.0,0.00040273,20]
[393748047,1762962641431,-345.72516998,0.00040273,20]
[393748048,1762962641440,-500.0,0.00040273,20]
[393748049,1762962641450,-152.35057545,0.00040273,20]
[393748050,1762962641459,-500.0,0.00040273,20]
[393748051,1762962641469,-500.0,0.00040273,20]
[393748052,1762962641479,-500.0,0.00040273,20]
[393748053,1762962641490,-590.26595731,0.00040273,20]
[393748054,1762962641500,-500.0,0.00040273,20]
[393748055,1762962641510,-500.0,0.00040273,20]
[393748056,1762962641520,-500.0,0.00040273,20]
[393748057,1762962641535,-367.90638687,0.00040273,20]
[393748058,1762962641545,-500.0,0.00040273,20]
[393748059,1762962641556,-500.0,0.00040273,20]
[393748060,1762962641569,-457.20941993,0.00040273,20]
[393748061,1762962641736,-42.79058007,0.00040273,20]
[393748062,1762962641746,-500.0,0.00040273,20]
[393748063,1762962641755,-500.0,0.00040273,20]
[393748064,1762962641765,-500.0,0.00040273,20]
[393748065,1762962641774,-500.0,0.00040273,20]
[393748066,1762962641784,-500.0,0.00040273,20]
[393748067,1762962641793,-560.18511923,0.00040273,20]
[393748068,1762962641804,-500.0,0.00040273,20]
[393748069,1762962641816,-514.06513942,0.00040273,20]
[393748070,1762962641825,-403.98315499,0.00040273,20]
[393748071,1762962641833,-542.25702309,0.00040273,20]
[393748072,1762962641843,-500.0,0.00040273,20]
[393748073,1762962641854,-418.44594308,0.00040273,20]
[393748074,1762962641863,-551.44,0.00040273,20]
[393748075,1762962641872,-500.0,0.00040273,20]
[393748076,1762962641881,-500.0,0.00040273,20]
[393748077,1762962641891,-500.0,0.00040273,20]
[393748078,1762962641900,-500.0,0.00040273,20]
[393748079,1762962641909,-500.0,0.00040273,20]
[393748080,1762962641919,-500.0,0.00040273,20]
[393748081,1762962641928,-500.0,0.00040273,20]
[393748082,1762962641937,-500.0,0.00040273,20]
[393748083,1762962641946,-541.77560864,0.00040273,20]
[393748084,1762962641955,-500.0,0.00040273,20]
[393748085,1762962641965,-500.0,0.00040273,20]
[393748086,1762962641974,-500.0,0.00040273,20]
[393748087,1762962641983,-500.0,0.00040273,20]
[393748088,1762962641992,-500.0,0.00040273,20]
[393748089,1762962642001,-1000.0,0.00040273,20]
[393748090,1762962642011,-500.0,0.00040273,20]
[393748091,1762962642020,-500.0,0.00040273,20]
[393748092,1762962642029,-500.0,0.00040273,20]
[393748093,1762962642038,-500.0,0.00040273,20]
[393748094,1762962642047,-529.48668816,0.00040273,20]
[393748095,1762962642057,-492.38148618,0.00040273,20]
[393748096,1762962642068,-352.47408335,0.00040273,20]
[393748097,1762962642078,-625.87360418,0.00040273,20]
[393748098,1762962642087,-500.0,0.00040273,20]
[393748099,1762962642097,-500.0,0.00040273,20]
[393748100,1762962642106,-500.0,0.00040273,20]
[393748101,1762962642115,-500.0,0.00040273,20]
[393748102,1762962642124,-500.0,0.00040273,20]
[393748103,1762962642137,-500.0,0.00040273,20]
[393748104,1762962642146,-285.83696218,0.00040273,20]
[393748105,1762962642155,-500.0,0.00040273,20]
[393748106,1762962642173,-500.0,0.00040273,20]
[393748107,1762962642182,-528.86049908,0.00040273,20]
[393748108,1762962642191,-500.0,0.00040273,20]
[393748109,1762962642201,-500.0,0.00040273,20]
[393748110,1762962642210,-513.77945621,0.00040273,20]
[393748111,1762962642220,-500.0,0.00040273,20]
[393748112,1762962642229,-500.0,0.00040273,20]
[393748113,1762962642239,-500.0,0.00040273,20]
[393748114,1762962642250,-500.0,0.00040273,20]
[393748115,1762962642260,-509.99200586,0.00040273,20]
[393748116,1762962642270,-500.0,0.00040273,20]
[393748117,1762962642280,-500.0,0.00040273,20]
[393748118,1762962642290,-500.0,0.00040273,20]
[393748119,1762962642299,-166.36205374,0.00040273,20]
[393748120,1762962642309,-390.0,0.00040273,20]
[393748121,1762962642319,-349.00865161,0.00040273,20]
[393748122,1762962642329,-500.0,0.00040273,20]
[393748123,1762962642339,-500.0,0.00040273,20]
[393748124,1762962642349,-536.7026372,0.00040273,20]
[393748125,1762962642359,-500.0,0.00040273,20]
[393748126,1762962642369,-611.94627296,0.00040273,20]
[393748127,1762962642379,-500.0,0.00040273,20]
[393748128,1762962642389,-500.0,0.00040273,20]
[393748129,1762962642398,-500.0,0.00040273,20]
[393748130,1762962642408,-500.0,0.00040273,20]
[393748131,1762962642417,-643.44809552,0.00040273,20]
[393748132,1762962642428,-500.0,0.00040273,20]
[393748133,1762962642438,-500.0,0.00040273,20]
[393748134,1762962642448,-554.9525438,0.00040273,20]
[393748135,1762962642457,-549.2216202,0.00040273,20]
[393748136,1762962642467,-500.0,0.00040273,20]
[393748137,1762962642476,-500.0,0.00040273,20]
[393748138,1762962642486,-500.0,0.00040273,20]
[393748139,1762962642496,-590.40600698,0.00040273,20]
[393748140,1762962642506,-524.26118812,0.00040273,20]
[393748141,1762962642515,-500.0,0.00040273,20]
[393748142,1762962642524,-500.0,0.00040273,20]
[393748143,1762962642534,-570.32347487,0.00040273,20]
[393748144,1762962642543,-53.84010118,0.00040273,20]
[393748145,1762962642558,-447.39121885,0.00040273,20]
[393748146,1762962642571,-500.0,0.00040273,20]
[393748147,1762962642581,-500.0,0.00040273,20]
[393748148,1762962642590,-500.0,0.00040273,20]
[393748149,1762962642600,-500.0,0.00040273,20]
[393748150,1762962642609,-500.0,0.00040273,20]
[393748151,1762962642619,-513.30573183,0.00040273,20]
[393748152,1762962642628,-500.0,0.00040273,20]
[393748153,1762962642637,-500.0,0.00040273,20]
[393748154,1762962642647,-500.0,0.00040273,20]
[393748155,1762962642657,-500.0,0.00040273,20]
[393748156,1762962642666,-500.0,0.00040273,20]
[393748157,1762962642676,-543.44240419,0.00040273,20]
[393748158,1762962642685,-500.0,0.00040273,20]
[393748159,1762962642695,-524.73314468,0.00040273,20]
[393748160,1762962642703,-192.6864208,0.00040273,120]
[393748161,1762962642711,-500.0,0.00040273,20]
[393748162,1762962642719,-500.0,0.00040273,20]
[393748163,1762962642727,-500.0,0.00040273,20]
[393748164,1762962642735,-500.0,0.00040273,20]
[393748165,1762962642742,-500.0,0.00040273,20]
[393748166,1762962642750,-500.0,0.00040273,20]
[393748167,1762962642758,-500.0,0.00040273,20]
[393748168,1762962642767,-500.0,0.00040273,20]
[393748169,1762962642776,-500.0,0.00040273,20]
[393748171,1762962642786,-500.0,0.00040273,20]
[393748173,1762962642795,-500.0,0.00040273,20]
[393748174,1762962642804,-500.0,0.00040273,20]
[393748175,1762962642814,-500.0,0.00040273,20]
[393748176,1762962642823,-522.98928177,0.00040273,20]
[393748177,1762962642832,-174.94496369,0.00040273,20]
[393748178,1762962642842,-539.29675997,0.00040273,20]
[393748179,1762962642851,-322.2749533,0.00040273,20]
[393748180,1762962642860,-500.0,0.00040273,20]
[393748181,1762962642871,-537.22325752,0.00040273,20]
[393748182,1762962642881,-247.66170784,0.00040273,20]
[393748183,1762962642890,-500.0,0.00040273,20]
[393748184,1762962642900,-500.0,0.00040273,20]
[393748185,1762962642910,-615.68904382,0.00040273,20]
[393748189,1762962643062,-500.0,0.00040273,20]
[393748190,1762962643072,-500.0,0.00040273,20]
[393748191,1762962643083,-501.71147644,0.00040273,20]
[393748192,1762962643093,-500.0,0.00040273,20]
[393748193,1762962643103,-166.60280515,0.00040273,20]
[393748194,1762962643112,-404.19298666,0.00040273,20]